Cogmind - Beta 10.2 @@@ ROGUE MODE // 2021.12.14 @ 07:41:42 Player: Happytimes Result: Self-destructed Performance ------------- Evolutions (0) 0 Regions Visited (4) 800 Robots Destroyed (7) 35 Value Destroyed (203) 203 Prototype IDs (3) 60 Alien Tech Used (0) 0 Bonus (300) 300 TOTAL SCORE: 1398 Bonus ------- Aligned with FarCom 300 Cogmind --------- Core Integrity 187/250 Matter 242/300 Energy 250/250 System Corruption 0% Temperature Cool (0) Movement Walking (120) Location -9/Mines Parts ------- > --- POWER (1) -------- Ion Engine > --- PROPULSION (2) --- Aluminum Leg Aluminum Leg > --- UTILITY (2) ------ Medium Storage Unit Improved Targeting Computer > --- WEAPON (2) ------- Heavy EM Pulse Gun Rocket Launcher > --- INVENTORY (8) ---- Improved Treads Improved Hover Unit Heat Sink Improved Targeting Computer Improved Targeting Computer Skeleton Box Heavy EM Pulse Gun Heavy EM Pulse Gun Peak State ------------ > --- POWER ------------ Ion Engine > --- PROPULSION ------- Aluminum Leg Aluminum Leg > --- UTILITY ---------- Superbattery Improved Targeting Computer > --- WEAPON ----------- Heavy EM Pulse Gun Heavy EM Pulse Gun > --- INVENTORY -------- Heat Sink Improved Targeting Computer Improved Targeting Computer Heavy EM Pulse Gun [Rating: 19] Favorites ----------- Power Ion Engine Engine Ion Engine Propulsion Aluminum Leg Leg Aluminum Leg Utility Improved Targeting Computer Device Skeleton Box Storage Small Storage Unit Processor Improved Targeting Computer Weapon Heavy EM Pulse Gun Energy Gun Heavy EM Pulse Gun Ballistic Gun Assault Rifle Launcher Rocket Launcher Build | -11 -10 -10 -10 -9 ------- Run | Scr Mat Min Exi Min Slots Evolved . | . . . . . Power . | . . . . . Propulsion . | . . . . . Utility . | . . . . . Weapon . | . . . . . Parts Attached 18 | 6 5 . 6 1 Power 1 | 1 . . . . Engine 1 | 1 . . . . Core . | . . . . . Reactor . | . . . . . Propulsion 3 | 2 1 . . . Treads . | . . . . . Leg 3 | 2 1 . . . Wheel . | . . . . . Hover . | . . . . . Flight . | . . . . . Utility 8 | 1 1 . 6 . Device 3 | . . . 3 . Storage 4 | 1 . . 3 . Processor 1 | . 1 . . . Hackware . | . . . . . Protection . | . . . . . Artifact . | . . . . . Weapon 6 | 2 3 . . 1 Energy Gun 4 | 2 2 . . . Energy Cannon . | . . . . . Ballistic Gun 1 | . 1 . . . Ballistic Cannon . | . . . . . Launcher 1 | . . . . 1 Special Weapon . | . . . . . Impact Weapon . | . . . . . Slashing Weapon . | . . . . . Piercing Weapon . | . . . . . Special Melee Weapon . | . . . . . Unidentified Prototypes 3 | . . . 3 . Parts Lost . | . . . . . Power . | . . . . . Propulsion . | . . . . . Utility . | . . . . . Weapon . | . . . . . Highest Loss Streak . | . . . . . Average Slot Usage (%) 97 | . 88 100 98 100 Engine 14 | . 14 14 14 14 Leg 28 | . 28 28 28 28 Storage 13 | . 14 14 12 14 Processor 11 | . 3 14 14 14 Energy Gun 26 | . 20 28 28 26 Ballistic Gun 1 | . 7 . . . Naked Turns . | . . . . . Heaviest Build 20 | 12 15 15 19 20 Greatest Support 20 | 20 20 20 20 20 Greatest Overweight (x) . | . . . . . Average Overweight (x) . | . . . . . Largest Inventory Capacity 8 | 6 6 6 8 8 Average Capacity 6 | 4 6 6 6 8 Most Carried 8 | 4 6 6 6 8 Average Carried 5 | 1 2 6 5 6 Final Capacity 8 | 6 6 6 8 8 Final Carried 8 | 1 6 6 6 8 Class Distribution -------------------- 100% | Mutant Dominant Class ---------------- Mutant | -10/Materials Mutant | -10/Mines Mutant | -10/Exiles Mutant | -9/Mines Resources | -11 -10 -10 -10 -9 ----------- Run | Scr Mat Min Exi Min Matter Collected 355 | 181 87 69 . 18 Remotely . | . . . . . Salvage Created 247 | . 129 99 . 19 Parts 11 | . 6 3 . 2 Haulers Intercepted . | . . . . . Recyclers Shooed 1 | . . 1 . . Parts Field Recycled . | . . . . . Retrieved Matter . | . . . . . Parts Self-Destructed . | . . . . . Prevented . | . . . . . Kills | -11 -10 -10 -10 -9 ------- Run | Scr Mat Min Exi Min Combat Hostiles Destroyed 7 | . 3 2 . 2 Guns 3 | . 3 . . . AOE 4 | . . 2 . 2 Classes Destroyed 2 | . 1 . . 1 Swarmer 2 | . . . . 2 Grunt 5 | . 3 2 . . Best Kill Streak 2 | . 1 2 . 2 Combat Bots Only 2 | . 1 2 . 2 Max Kills in Single Turn 2 | . 1 2 . 2 Gunslinging . | . . . . . Exploded 2 | . . 2 . 2 Melee . | . . . . . Uniques/NPCs Destroyed . | . . . . . Combat | -11 -10 -10 -10 -9 -------- Run | Scr Mat Min Exi Min Damage Taken 309 | . 206 15 . 88 Core 63 | . 54 . . 9 Absorbed by Shields . | . . . . . Core Remaining (%) 100 | 100 . . . . Volleys Fired 20 | . 16 3 . 1 Largest 2 | . 2 2 . 2 Hottest 90 | . 90 90 . 78 Shots Fired 40 | . 32 6 . 2 Gun 39 | . 32 6 . 1 Cannon . | . . . . . Launcher 1 | . . . . 1 Special . | . . . . . Kinetic 9 | . 9 . . . Thermal 23 | . 23 . . . Explosive 1 | . . . . 1 Electromagnetic 7 | . . 6 . 1 Robot Hit Streak 6 | . 6 5 . . Robot Miss Streak 4 | . 4 1 . . Penetration Max . | . . . . . Secondary Targets . | . . . . . Shots Hit Robots 27 | . 22 5 . . Core Hits 11 | . 7 2 . 2 Critical Hits . | . . . . . Critical Kills . | . . . . . Critical Parts Destroyed . | . . . . . Melee Attacks . | . . . . . Impact . | . . . . . Slashing . | . . . . . Piercing . | . . . . . Sneak Attacks . | . . . . . Combat Hostiles . | . . . . . Follow-up Attacks . | . . . . . Damage Inflicted 573 | . 280 199 . 94 Guns 361 | . 280 81 . . Cannons . | . . . . . Explosions 211 | . . 118 . 93 Melee . | . . . . . Ramming 1 | . . . . 1 Kinetic 86 | . 86 . . . Thermal 312 | . 194 118 . . Explosive 93 | . . . . 93 Electromagnetic 81 | . . 81 . . Impact . | . . . . . Slashing . | . . . . . Piercing . | . . . . . Highest Corruption . | . . . . . Average Corruption . | . . . . . Corruption Purged . | . . . . . Overload Shots . | . . . . . Overflow Damage . | . . . . . Projectiles . | . . . . . Explosions . | . . . . . Melee . | . . . . . Knockbacks . | . . . . . Impact . | . . . . . Kinetic . | . . . . . Secondary . | . . . . . Self-Inflicted Damage 39 | . . . . 39 Shots 1 | . . . . 1 Rammed . | . . . . . Targets Rammed 1 | . . . . 1 Kicked 1 | . . . . 1 Crushed . | . . . . . Highest Temperature 185 | . 185 60 . 18 Average Temperature 67 | . 78 27 . 12 Received Heat Transfer 123 | . 114 9 . . Siege Activations . | . . . . . Robots Corrupted . | . . . . . Combat Hostiles . | . . . . . Parts Fried . | . . . . . Impact Corruptions . | . . . . . Robots Melted . | . . . . . Combat Hostiles . | . . . . . Parts Melted . | . . . . . Heat Transferred 644 | . 544 100 . . Parts Sabotaged . | . . . . . Parts Stolen . | . . . . . Parts Stripped . | . . . . . Power Chain Reactions 1 | . . 1 . . Missiles Intercepted . | . . . . . Alert | -11 -10 -10 -10 -9 ------- Run | Scr Mat Min Exi Min Peak Influence 104 | . 100 104 . 55 Initial 39 | . . 39 . . Average 43 | . 61 56 . 1 Maximum Alert Level . | . . . . . Low Security (%) 100 | 100 100 100 . 100 Level 1 . | . . . . . Level 2 . | . . . . . Level 3 . | . . . . . Level 4 . | . . . . . Level 5 . | . . . . . High Security . | . . . . . Max Security . | . . . . . Squads Dispatched 2 | . 2 . . . Investigation 1 | . 1 . . . Extermination . | . . . . . Reinforcement 1 | . 1 . . . Assault . | . . . . . Garrison . | . . . . . Intercept . | . . . . . Construction Impeded . | . . . . . Haulers Reinforced . | . . . . . Stealth | -11 -10 -10 -10 -9 --------- Run | Scr Mat Min Exi Min Distress Signals . | . . . . . Communications Jammed . | . . . . . Distress Signals . | . . . . . Times Spotted 13 | . 7 2 . 4 Peak Tracking Total 4 | . 2 2 . 4 Tactical Retreats 1 | . 1 . . . Traps | -11 -10 -10 -10 -9 ------- Run | Scr Mat Min Exi Min Traps Triggered . | . . . . . Indirectly . | . . . . . Trap Hack Attempts . | . . . . . Triggered . | . . . . . Disarmed . | . . . . . Reprogrammed . | . . . . . Reused . | . . . . . Traps Extracted . | . . . . . Installed . | . . . . . Triggered . | . . . . . Machines | -11 -10 -10 -10 -9 ---------- Run | Scr Mat Min Exi Min Machines Disabled . | . . . . . Max in Single Turn . | . . . . . Machines Sabotaged . | . . . . . Garrisons Compromised . | . . . . . Overloaded Fab Kills . | . . . . . Fab Network Shutdowns . | . . . . . Hacking | -11 -10 -10 -10 -9 --------- Run | Scr Mat Min Exi Min Machines Accessed 1 | . 1 . . . Terminals 1 | . 1 . . . Fabricators . | . . . . . Repair Stations . | . . . . . Recycling Units . | . . . . . Scanalyzers . | . . . . . Garrison Access . | . . . . . Total Hacks 4 | . 4 . . . Successful 1 | . 1 . . . Failed 3 | . 3 . . . Catastrophic . | . . . . . Database Lockouts . | . . . . . Manual 1 | . . . 1 . Terminals 4 | . 4 . . . Fabricators . | . . . . . Repair Stations . | . . . . . Recycling Units . | . . . . . Scanalyzers . | . . . . . Garrison Access . | . . . . . Terminal Hacks 1 | . 1 . . . Alert Level 1 | . 1 . . . Fabricator Hacks . | . . . . . Repair Station Hacks . | . . . . . Recycling Unit Hacks . | . . . . . Scanalyzer . | . . . . . Garrison Access Hacks . | . . . . . Unauthorized Hacks . | . . . . . Terminals . | . . . . . Fabricators . | . . . . . Repair Stations . | . . . . . Recycling Units . | . . . . . Scanalyzers . | . . . . . Garrison Access . | . . . . . Data Cores Recovered . | . . . . . Used . | . . . . . Hacking Detections 1 | . 1 . . . Full Trace Events 1 | . 1 . . . Feedback Events . | . . . . . Feedback Blocked . | . . . . . Robot Schematics Acquired . | . . . . . Robots Built . | . . . . . Matter . | . . . . . Time . | . . . . . Total Robot Build Rating . | . . . . . Part Schematics Acquired . | . . . . . Parts Built . | . . . . . Matter . | . . . . . Time . | . . . . . Total Part Build Rating . | . . . . . Parts Repaired . | . . . . . Time . | . . . . . Parts Recycled . | . . . . . Recycled Matter . | . . . . . Retrieved Matter . | . . . . . Retrieved Components . | . . . . . Parts Scanalyzed . | . . . . . Part Schematics Acquired . | . . . . . Parts Damaged . | . . . . . Bothacking | -11 -10 -10 -10 -9 ------------ Run | Scr Mat Min Exi Min Used RIF Installer . | . . . . . Robots Hacked . | . . . . . Non-combat . | . . . . . Combat . | . . . . . Robot Hacks Applied . | . . . . . Relay Couplers Released . | . . . . . Robots Rewired . | . . . . . Allies Hacked . | . . . . . Hacks Repelled . | . . . . . Allies | -11 -10 -10 -10 -9 -------- Run | Scr Mat Min Exi Min Total Allies 5 | . . 5 . . Largest Group 5 | . . 5 5 2 Highest-Rated Group 81 | . . 81 81 24 Highest-Rated Ally 31 | . . 31 31 16 Total Orders . | . . . . . Ally Attacks . | . . . . . Total Damage . | . . . . . Kills . | . . . . . Allies Corrupted . | . . . . . Allies Melted . | . . . . . Intel | -11 -10 -10 -10 -9 ------- Run | Scr Mat Min Exi Min Robot Analysis Total . | . . . . . Derelict Logs Recovered 2 | . . 1 . 1 Drone Launches . | . . . . . Drone Recoveries . | . . . . . Exploration | -11 -10 -10 -10 -9 ------------- Run | Scr Mat Min Exi Min Turns Passed 1225 | 47 253 344 413 168 Spaces Moved 897 | 47 144 258 329 119 Core 29 | 29 . . . . Treads . | . . . . . Legs 868 | 18 144 258 329 119 Wheels . | . . . . . Hover . | . . . . . Flight . | . . . . . Fastest Speed 50 | 50 120 120 120 120 Average Speed 117 | 76 120 120 120 120 Slowest Speed 120 | 120 120 120 120 120 Overloaded Moves . | . . . . . Propulsion Burnouts . | . . . . . Robots Hopped . | . . . . . Cave-ins Triggered . | . . . . . Exploration Rate (%) 33 | 3 18 52 63 33 Regions Visited 4 Branch Regions 3 Pre-discovered Areas 2 | . . 1 . 1 Known Exits Taken . | . . . . . Unknown Exits Taken 4 | 1 1 1 1 . Scrap Searched 1 | . . . . 1 Spaces Dug 10 | . . . . 10 Terrain Destroyed 13 | . . 3 . 10 Melee . | . . . . . Projectile . | . . . . . AOE 13 | . . 3 . 10 Terrain Rammed . | . . . . . Walls Destroyed . | . . . . . Machines Disabled . | . . . . . Actions | -11 -10 -10 -10 -9 --------- Run | Scr Mat Min Exi Min Total 1024 | 56 193 286 348 141 Wait 58 | . 15 26 . 17 Move 893 | 46 143 257 328 119 Hop . | . . . . . Pick Up 20 | 4 9 . 5 2 Fast Attach 10 | 3 1 . 6 . Attach 4 | 3 1 . . . Detach . | . . . . . Swap 4 | . 3 . . 1 Drop 14 | . 5 . 9 . Fire 20 | . 16 3 . 1 Melee . | . . . . . Ram . | . . . . . Kick 1 | . . . . 1 Crush . | . . . . . Escape Stasis . | . . . . . Rewire . | . . . . . Trap . | . . . . . Miscellaneous . | . . . . . Route ------- -11/Scrapyard -10/Materials -10/Mines (discovered 2 exits: [*Mat] / *Exi) -10/Exiles -9/Mines (discovered 1 exit: [*Mat]) History --------- Turn | Location | Event 7 | -11/Scrapyard | Discovered new exit (range 16) 48 | -11/Scrapyard | Entered Materials 153 | -10/Materials | Discovered new exit (range 9) 301 | -10/Materials | Entered Mines 304 | -10/Mines | Build established: Mutant 329 | -10/Mines | Discovered new exit (range 12) 522 | -10/Mines | Assisted by bots powering up and referring to "LRC-V3" 609 | -10/Mines | Learned location of Zion (-7) 624 | -10/Mines | Deemed a non-threat by the Exiles lab entrance 624 | -10/Mines | Discovered new exit (range 5) 645 | -10/Mines | Entered Exiles 645 | -10/Exiles | Accompanied by 5 allies 675 | -10/Exiles | Led the pair of lost Derelicts to a safe place 678 | -10/Exiles | Met 8R-AWN 703 | -10/Exiles | Met EX-HEX 740 | -10/Exiles | Met EX-BIN 753 | -10/Exiles | Aligned with FarCom system 755 | -10/Exiles | Given EX-Vault access code 791 | -10/Exiles | Opened EX-Vault 829 | -10/Exiles | Found Prototype Device 829 | -10/Exiles | Identified Skeleton Box 836 | -10/Exiles | Found Prototype Device 836 | -10/Exiles | Identified Cloak of Protection 845 | -10/Exiles | Found Prototype Storage 845 | -10/Exiles | Identified Superbattery 906 | -10/Exiles | Warned to stay clear of 0b10 Research branches 948 | -10/Exiles | Met EX-DEC 1044 | -10/Exiles | Discovered new exit (range 12) 1058 | -10/Exiles | Left Exiles lab with Skeleton Box 1058 | -10/Exiles | Entered Mines 1058 | -9/Mines | Accompanied by 2 allies 1098 | -9/Mines | Discovered new exit (range 8) 1226 | -9/Mines | Self-destructed Last Messages --------------- 01068_ Kicked K-01 Serf out of the way. 01068_ K-01 Serf cleans the Seismic Survey Station. 01083_ K-01 Serf collects debris. 01098_ K-01 Serf cleans the Laser Drill. 01098_ EXIT=FOUND 01100_ K-01 Serf cleans the Laser Drill. 01162_ K-01 Serf collects debris. 01177_ Searching scrap... 01177_ Found Lrg. Battery. 01177_ Found Imp. Hover Unit. 01177_ Found Tractor Beam. 01177_ Found Imp. Treads. 01177_ Found 18 Matter. 01178_ Acquired 18 matter. 01185_ Acquired Imp. Treads. 01187_ Acquired Imp. Hover Unit. 01203_ Acquired derelict log, extracted data. World map confirmed: -7/Zion. 01221_ S-10 Pest destroyed. 01225_ K-01 Serf collects debris. Map ----- +----------------------------------------------------+ | | | | | | | | | | | ?????????????????????????????????????????????????? | | ????????????????????????????????????????????????## | | ????????????????????????????????####???????????## | | ???????????????????????????????## #######???### | | ???????????????????????????????# ! #??## | | ???????????????????????????????# ! #??# | | ???????????????????????????????# ### #??# | | ???????????????????????????????## #?# #### | | ????????????????????????????????## #?# "" | | ?????????????????????????????????# #?# "" | | ?????????????????????????###?????# ######### "" | | ????????????????????????? #?????# #??????# | | ?????????????????????????#t#?????# #??????## | | ?????????????????????????# #?????# ##???????## | | ?????????????????????????# #???### #?????????# # | | ?????????????b???????????#u#???# #?????????# # | | ????????????????????????## ##??# #?????????# # | | ???????????????????????## #### ###????????? # | | ??????????????g????????# g g #???????????#### | | ???????????????????????# #######??????????????? | | ???????????????????????# @ #????????????????????? | | ???????????????????????# % #????????????????????? | | ?????????????????????? =% #???????????????????? | | ????????????????????? s s #???????????????????? | | ???????????????????? t k #??????????????????? | | ??????????????????# #?????????????????? | | ?????????????????# #?????????????????? | | ????????????????# ##?????????????????? | | ????????????????# ###??????????????????? | | ???????????????? #####????????????????????? | | ???????????????# """ #?????????????????????????? | | ???????????????# """ #??????????????????????????? | | ???????????????? ???" ???????????????????????????? | | ????????????????????" ???????????????????????????? | | ?????????????????????????????????????????????????? | | ?????????????????????????????????????????????????? | | ?????????????????????????????????????????????????? | | ?????????????????????????????????????????????????? | | ?????????????????????????????????????????????????? | | ?????????????????????????????????????????????????? | | ?????????????????????????????????????????????????? | | ?????????????????????????????????????????????????? | | ?????????????????????????????????????????????????? | | ?????????????????????????????????????????????????? | | ?????????????????????????????????????????????????? | +----------------------------------------------------+ Best States ------------- Heat Dissipation 25 Energy Generation 10 Energy Capacity 250 Matter Stores 300 Matter Capacity 300 Sight Range 16 Terrain Scan Density 10 Evasion (%) 50 Targeting Accuracy 6 Item Schematics ----------------- None Robot Schematics ------------------ None Fabricated ------------ Nothing Alien Tech Used ----------------- None Achievements -------------- None Challenges ------------ None Game ------ Seed RemoteGaussSuperbattery Manual? 0 Play Time 01:18:02 Cumulative 31.8 hours Start 2021.12.13 @ 10:17:13 End 2021.12.14 @ 07:41:42 Sessions 1 Manual Loads 0 Difficulty Rogue Special Mode None Game No. 88 Rogue 88 Adventurer 0 Explorer 0 Win Type - Total 0 Types 0/0/0/0/0/0/0/0/0 Lore% 30 Gallery% 45 Achievement% 32 Wizard Run 0 Options --------- ASCII 0 Keyboard 0 Movement Arrows Keybinds 0 Fullscreen 1 Font 18/SmallcapsGlow Map View 76x50 Tactical HUD 1 Map Filters NONE Filters NONE Steam 1 RUN: f424cc38-e527-4356-84ec-6f4d50ab7a45